lending/lending_fUSD_20260209
["ID","MTS","AMOUNT","RATE_DAILY","PERIOD"]
[404885110,1770648718693,-521.44,0.00044356,120]
[404885111,1770648718703,-1062.41,0.00044356,120]
[404885112,1770648718713,-521.44,0.00044356,120]
[404885113,1770648718723,-1062.41,0.00044356,120]
[404885114,1770648718732,-521.44,0.00044356,120]
[404885115,1770648718742,-1062.41,0.00044356,120]
[404885116,1770648718751,-521.44,0.00044356,120]
[404885117,1770648718760,-521.44,0.00044356,120]
[404885118,1770648718769,-1062.41,0.00044356,120]
[404885119,1770648718779,-521.44,0.00044356,120]
[404885120,1770648718788,-1062.41,0.00044356,120]
[404885121,1770648718797,-521.44,0.00044356,120]
[404885122,1770648718806,-1062.41,0.00044356,120]
[404885123,1770648718816,-1062.41,0.00044356,120]
[404885124,1770648718825,-521.44,0.00044356,120]
[404885125,1770648718852,-1062.41,0.00044356,120]
[404885126,1770648718869,-521.44,0.00044356,120]
[404885127,1770648718888,-1062.41,0.00044356,120]
[404885128,1770648718908,-521.44,0.00044356,120]
[404885129,1770648718924,-1062.41,0.00044356,120]
[404885130,1770648718944,-521.44,0.00044356,120]
[404885131,1770648718965,-521.63915379,0.00044356,120]
[404885132,1770648718985,-1062.41,0.00044356,120]
[404885133,1770648719004,-1062.41,0.00044356,120]
[404885134,1770648719023,-1062.41,0.00044356,120]
[404885135,1770648719040,-1062.41,0.00044356,120]
[404885136,1770648719055,-1062.41,0.00044356,120]
[404885137,1770648719075,-1062.60291904,0.00044356,120]
[404885138,1770648719089,-500.0,0.00044356,120]
[404885139,1770648719105,-500.0,0.00044356,120]
[404885140,1770648719121,-500.0,0.00044356,120]
[404885141,1770648719137,-500.0,0.00044356,120]
[404885142,1770648719152,-500.0,0.00044356,120]
[404885143,1770648719167,-500.0,0.00044356,120]
[404885144,1770648719182,-500.0,0.00044356,120]
[404885145,1770648719197,-500.0,0.00044356,120]
[404885146,1770648719217,-500.0,0.00044356,120]
[404885147,1770648719232,-500.0,0.00044356,120]
[404885148,1770648719247,-500.0,0.00044356,120]
[404885149,1770648719262,-500.0,0.00044356,120]
[404885150,1770648719278,-500.0,0.00044356,120]
[404885151,1770648719293,-500.0,0.00044356,120]
[404885152,1770648719310,-500.0,0.00044356,120]
[404885153,1770648719325,-500.0,0.00044356,120]
[404885154,1770648719341,-500.0,0.00044356,120]
[404885155,1770648719355,-500.0,0.00044356,120]
[404885156,1770648719372,-500.0,0.00044356,120]
[404885157,1770648719389,-500.0,0.00044356,120]
[404885158,1770648719404,-500.0,0.00044356,120]
[404885159,1770648719419,-500.0,0.00044356,120]
[404885160,1770648719434,-500.0,0.00044356,120]
[404885161,1770648719449,-500.0,0.00044356,120]
[404885162,1770648719466,-167.63065764,0.00044356,120]
[404885163,1770648719481,-500.0,0.00044356,120]
[404885164,1770648719494,-500.0,0.00044356,120]
[404885165,1770648719509,-500.0,0.00044356,120]
[404885166,1770648719524,-197.78612942,0.00044356,120]
[404885167,1770648719539,-505.69655066,0.00044356,120]
[404885168,1770648719554,-524.90357592,0.00044356,120]
[404885169,1770648719570,-510.66922724,0.00044356,120]
[404885170,1770648719585,-400.0,0.0004437,3]
[404885171,1770648719600,-702.72197926,0.0004437,3]
[404885172,1770648719615,-501.16630572,0.0004437,3]
[404885173,1770648719629,-150.0,0.00044373,7]
[404885174,1770648719643,-150.0,0.00044373,10]
[404885175,1770648719660,-9250.0,0.00044384,120]
[404885176,1770648719675,-320.38406895,0.00044399,2]
[404885177,1770648719688,-151.8124,0.000444,2]
[404885178,1770648719705,-2354.0912,0.000444,90]
[404885179,1770648719720,-151.0,0.000444,120]
[404885180,1770648719734,-151.0,0.000444,120]
[404885181,1770648719749,-275.85759165,0.00044408,15]
[404885182,1770648719764,-175.81039675,0.00044408,19]
[404885183,1770648719779,-168.0,0.00044413,2]
[404885184,1770648719795,-518.99163578,0.0004443,120]
[404885185,1770648719810,-165.68970657,0.00044446,7]
[404885186,1770648719824,-150.0,0.00044455,2]
[404885187,1770648719839,-2500.0,0.00044456,120]
[404885188,1770648719856,-400.0,0.0004447,3]
[404885189,1770648719869,-300.0,0.0004447,3]
[404885190,1770648719883,-300.0,0.00044473,5]
[404885191,1770648719896,-152.0,0.00044488,3]
[404885192,1770648719909,-1818.54376194,0.00044499,2]
[404885193,1770648719924,-1818.54376194,0.00044499,2]
[404885194,1770648719940,-500.0,0.000445,20]
[404885195,1770648719955,-167.03,0.000445,14]
[404885196,1770648719972,-202.01102007,0.000445,7]
[404885197,1770648719987,-320.38406895,0.00044504,2]
[404885198,1770648720001,-207.80954,0.00044508,120]
[404885199,1770648720015,-891.85009613,0.00044521,10]
[404885200,1770648720029,-1000.0,0.00044521,10]
[404885201,1770648720044,-500.0,0.00044521,10]
[404885202,1770648720058,-1000.0,0.00044521,10]
[404885203,1770648720072,-184.63080056,0.00044521,10]
[404885204,1770648720086,-1000.0,0.00044521,10]
[404885205,1770648720100,-1000.0,0.00044521,10]
[404885206,1770648720114,-1000.0,0.00044521,10]
[404885207,1770648720130,-2500.0,0.00044555,120]
[404885208,1770648720144,-500.0,0.00044563,10]
[404885209,1770648720159,-500.0,0.00044563,10]
[404885210,1770648720174,-500.0,0.00044563,10]
[404885211,1770648720187,-500.0,0.00044563,10]
[404885212,1770648720203,-471.0,0.00044563,10]
[404885213,1770648720217,-235.67490708,0.00044609,9]
[404885214,1770648720231,-320.38406895,0.00044609,2]
[404885215,1770648720246,-518.99163578,0.00044609,120]
[404885216,1770648720261,-500.0,0.00044645,10]
[404885217,1770648720277,-500.0,0.00044645,10]
[404885218,1770648720293,-500.0,0.00044645,10]
[404885219,1770648720313,-583.0,0.00044645,10]
[404885220,1770648720326,-2500.0,0.00044655,120]
[404885221,1770648720341,-50000.0,0.00044708,45]
[404885222,1770648720357,-2525.01333213,0.00044709,120]
[404885223,1770648720567,-151.0,0.00044709,14]
[404885224,1770648720581,-151.0,0.00044709,14]
[404885225,1770648720590,-151.0,0.00044709,14]
[404885226,1770648720599,-151.0,0.00044709,14]
[404885227,1770648720608,-156.643612,0.00044709,120]
[404885228,1770648720616,-156.643612,0.00044709,120]
[404885229,1770648720625,-156.643612,0.00044709,120]
[404885230,1770648720635,-156.643612,0.00044709,120]
[404885231,1770648720644,-156.643612,0.00044709,120]
[404885232,1770648720653,-156.643612,0.00044709,120]
[404885233,1770648720662,-156.643612,0.00044709,120]
[404885234,1770648720671,-156.643612,0.00044709,120]
[404885235,1770648720681,-156.643612,0.00044709,120]
[404885236,1770648720690,-156.643612,0.00044709,120]
[404885237,1770648720702,-156.643612,0.00044709,120]
[404885238,1770648720715,-156.643612,0.00044709,120]
[404885239,1770648720724,-156.643612,0.00044709,120]
[404885240,1770648720734,-156.643612,0.00044709,120]
[404885241,1770648720743,-156.643612,0.00044709,120]
[404885242,1770648720752,-156.643612,0.00044709,120]
[404885243,1770648720762,-156.643612,0.00044709,120]
[404885244,1770648720771,-156.643612,0.00044709,120]
[404885245,1770648720780,-156.643612,0.00044709,120]
[404885246,1770648720790,-156.643602,0.00044709,120]
[404885247,1770648720799,-151.0,0.00044709,7]
[404885248,1770648720808,-259.88558,0.00044709,7]
[404885249,1770648720818,-19113406.45105812,0.00044709,10]
[404885250,1770648720827,-479.31001694,0.00044709,7]
[404885251,1770648720836,-224.50368792,0.00044709,7]
[404885252,1770648720846,-623.45669928,0.00044709,7]
[404885253,1770648720855,-3980366.53303379,0.00044709,10]
[404885254,1770648720865,-2853.95342824,0.00044709,2]
[404885255,1770648720875,-2333170.7715372,0.00044709,10]
[404885256,1770648720884,-5114.12851676,0.00044709,10]
[404885257,1770648720894,-536593.57922225,0.00044709,10]
[404885258,1770648720905,-1609643.95809567,0.00044709,10]
[404885259,1770648720915,-853590.34943809,0.00044709,10]
[404885260,1770648720924,-1379848.73919313,0.00044709,10]
[404885261,1770648720935,-161.92633919,0.00044709,2]
[404885262,1770648720944,-8085208.15612547,0.00044709,10]
[404885263,1770648720953,-12142589.73486685,0.00044709,10]
[404885264,1770648720965,-518357.63089772,0.00044709,10]
[404885265,1770648720975,-11434052.13368717,0.00044709,10]
[404885266,1770648720984,-247.87465432,0.00044709,2]
[404885267,1770648720993,-4106759.71953743,0.00044709,10]
[404885268,1770648732834,151.0,0.00014634,2]
[404885277,1770649593129,-263.43,0.000326,7]
[404885278,1770649593151,-8.24649327,0.00032616,2]
[404885901,1770649831572,-1398.56766829,0.00031,2]
[404885902,1770649831586,-250.0,0.00031,2]
[404885903,1770649831598,-575.75,0.00031,2]
[404885906,1770649831644,-1670.15338482,0.00031,2]
[404885907,1770649831655,-492.46259631,0.00032616,2]
[404885908,1770649831669,-15.53740369,0.00032616,2]
[404885909,1770649831680,-150.0,0.00034904,2]
[404885910,1770649831691,-400.0,0.00035859,3]
[404885911,1770649831701,-1298.84629441,0.00035859,3]
[404885912,1770649831715,-301.15370559,0.00035859,3]
[404885913,1770649831725,-250.0,0.00035878,2]
[404885914,1770649831734,-694.43366513,0.00036621,2]
[404885915,1770649831747,-2738.33598373,0.00036621,2]
[404885916,1770649831759,-501.00324206,0.00036621,2]
[404885917,1770649831771,-10765.11710908,0.00036621,2]
[404885918,1770649831781,-150.0,0.00036649,2]
[404885919,1770649831791,-500.0,0.0003691,2]
[404885920,1770649831800,-200.0,0.00036936,2]
[404885921,1770649831811,-480.0,0.00036981,3]
[404885922,1770649831821,-400.0,0.00036981,3]
[404885923,1770649831831,-15362.84,0.00036982,2]
[404885924,1770649831841,-151.8,0.00037022,2]
[404885925,1770649831851,-917.72,0.00037043,2]
[404885926,1770649831861,-500.0,0.00037165,2]
[404885927,1770649831873,-224.76,0.00037527,2]
[404885928,1770649831883,-548.10889978,0.00037616,2]
[404885929,1770649831892,-775.36,0.0003764,120]
[404885930,1770649831902,-177.91819001,0.00037721,11]
[404885931,1770649831917,-2313.49159377,0.00037721,2]
[404885932,1770649831927,-2195.74916752,0.00037721,2]
[404885935,1770649831944,-303.0,0.00037726,2]
[404885938,1770649831956,-21449.55663612,0.00037727,2]
[404885940,1770649831967,-21449.5566361,0.00037758,2]
[404885942,1770649831977,-150.0,0.00037778,30]
[404885945,1770649831988,-150.0,0.00037778,2]
[404885947,1770649831999,-21449.5566361,0.0003779,2]
[404885949,1770649832010,-500.0,0.00037804,15]
[404885952,1770649832020,-287.82838602,0.00037804,15]
[404885954,1770649832031,-500.0,0.00037804,15]
[404885955,1770649832042,-500.0,0.00037804,7]
[404885956,1770649832052,-500.0,0.00037804,7]
[404885957,1770649832062,-500.0,0.00037804,15]
[404885958,1770649832072,-802.93434049,0.00037804,15]
[404885959,1770649832083,-802.93434049,0.00037804,15]
[404885960,1770649832094,-500.0,0.00037804,7]
[404885961,1770649832104,-500.0,0.00037804,15]
[404885962,1770649832114,-500.0,0.00037804,15]
[404885963,1770649832127,-500.0,0.00037804,7]
[404885964,1770649832138,-500.0,0.00037804,15]
[404885965,1770649832149,-802.93434049,0.00037804,15]
[404885966,1770649832161,-487.461069,0.00037804,7]
[404885967,1770649832171,-204.15306279,0.00037804,15]
[404885968,1770649832183,-500.0,0.00037804,15]
[404885969,1770649832193,-500.0,0.00037804,15]
[404885970,1770649832203,-500.0,0.00037804,7]
[404885971,1770649832213,-802.93434049,0.00037804,15]
[404885972,1770649832223,-577.02570193,0.00037804,15]
[404885973,1770649832234,-802.93434049,0.00037804,15]
[404885974,1770649832244,-500.0,0.00037804,15]
[404885975,1770649832254,-418.13556573,0.00037804,7]
[404885976,1770649832265,-802.93434049,0.00037804,15]
[404885977,1770649832275,-500.0,0.00037804,15]
[404885978,1770649832285,-428.44927385,0.00037804,15]
[404885979,1770649832299,-802.93434049,0.00037804,15]
[404885980,1770649832309,-500.0,0.00037804,15]
[404885981,1770649832319,-802.93434049,0.00037804,15]
[404885982,1770649832328,-802.93434049,0.00037804,15]
[404885983,1770649832339,-802.93434049,0.00037804,15]
[404885984,1770649832350,-802.93434049,0.00037804,15]
[404885985,1770649832360,-802.93434049,0.00037804,15]
[404885986,1770649832372,-802.93434049,0.00037804,15]
[404885987,1770649832382,-802.93434049,0.00037804,15]
[404885988,1770649832392,-802.93434049,0.00037804,15]
[404885989,1770649832402,-802.93434049,0.00037804,15]
[404885990,1770649832412,-802.93434049,0.00037804,15]
[404885991,1770649832422,-802.93434049,0.00037804,15]
[404885992,1770649832432,-802.93434049,0.00037804,15]
[404885993,1770649832448,-802.93434049,0.00037804,15]
[404885994,1770649832458,-802.93434049,0.00037804,15]
[404885995,1770649832468,-802.93434049,0.00037804,15]
[404885996,1770649832483,-802.93434049,0.00037804,15]
[404885997,1770649832494,-802.93434049,0.00037804,15]
[404885998,1770649832504,-802.93434049,0.00037804,15]
[404885999,1770649832514,-802.93434049,0.00037804,15]
[404886000,1770649832524,-802.93434049,0.00037804,15]
[404886001,1770649832535,-802.93434049,0.00037804,15]
[404886002,1770649832544,-802.93434049,0.00037804,15]
[404886003,1770649832554,-802.93434049,0.00037804,15]
[404886004,1770649832564,-802.93434049,0.00037804,15]
[404886005,1770649832573,-802.93434049,0.00037804,15]
[404886006,1770649832583,-802.93434049,0.00037804,15]
[404886007,1770649832592,-802.93434049,0.00037804,15]
[404886008,1770649832602,-802.93434049,0.00037804,15]
[404886009,1770649832612,-802.93434049,0.00037804,15]
[404886010,1770649832625,-802.93434049,0.00037804,15]
[404886011,1770649832638,-802.93434049,0.00037804,15]
[404886012,1770649832648,-802.93434049,0.00037804,15]
[404886013,1770649832658,-802.93434049,0.00037804,15]
[404886014,1770649832668,-802.93434049,0.00037804,15]
[404886015,1770649832678,-802.93434049,0.00037804,15]
[404886016,1770649832688,-802.93434049,0.00037804,15]
[404886017,1770649832701,-802.93434049,0.00037804,15]
[404886018,1770649832714,-802.93434049,0.00037804,15]
[404886019,1770649832724,-802.93434049,0.00037804,15]
[404886020,1770649832734,-802.93434049,0.00037804,15]
[404886021,1770649832744,-802.93434049,0.00037804,15]
[404886022,1770649832753,-802.93434049,0.00037804,15]
[404886023,1770649832764,-802.93434049,0.00037804,15]
[404886024,1770649832775,-802.93434049,0.00037804,15]
[404886025,1770649832788,-802.93434049,0.00037804,15]
[404886026,1770649832798,-802.93434049,0.00037804,15]
[404886027,1770649832809,-802.93434049,0.00037804,15]
[404886028,1770649832822,-802.93434049,0.00037804,15]
[404886029,1770649832832,-802.93434049,0.00037804,15]
[404886030,1770649832844,-802.93434049,0.00037804,15]
[404886031,1770649832854,-812.82410099,0.00037804,15]
[404886032,1770649832865,-812.82410099,0.00037804,15]
[404886033,1770649832876,-812.82410099,0.00037804,15]
[404886034,1770649832886,-812.82410099,0.00037804,15]
[404886035,1770649832897,-812.82410099,0.00037804,15]
[404886036,1770649832908,-812.82410099,0.00037804,15]
[404886037,1770649832918,-812.82410099,0.00037804,15]
[404886038,1770649832929,-812.82410099,0.00037804,15]
[404886039,1770649832939,-812.82410099,0.00037804,15]
[404886040,1770649832948,-812.82410099,0.00037804,15]
[404886041,1770649832959,-812.82410099,0.00037804,15]
[404886042,1770649832968,-812.82410099,0.00037804,15]
[404886043,1770649832978,-812.82410099,0.00037804,15]
[404886044,1770649832988,-812.82410099,0.00037804,15]
[404886045,1770649832999,-812.82410099,0.00037804,15]
[404886046,1770649833008,-812.82410099,0.00037804,15]
[404886047,1770649833018,-812.82410099,0.00037804,15]
[404886048,1770649833028,-812.82410099,0.00037804,15]
[404886049,1770649833038,-812.82410099,0.00037804,15]
[404886050,1770649833047,-812.82410099,0.00037804,15]
[404886051,1770649833057,-812.82410099,0.00037804,15]
[404886052,1770649833067,-812.82410099,0.00037804,15]
[404886053,1770649833077,-812.82410099,0.00037804,15]
[404886054,1770649833090,-812.82410099,0.00037804,15]
[404886055,1770649833099,-510.79429755,0.00037804,15]
[404886056,1770649833114,-302.02980344,0.00037804,15]
[404886057,1770649833126,-101.29019657,0.00037804,15]
[404886058,1770649833140,-711.53390442,0.00037804,15]
[404886059,1770649833150,-812.82410099,0.00037804,15]
[404886060,1770649833160,-812.82410099,0.00037804,15]
[404886061,1770649833170,-812.82410099,0.00037804,15]
[404886062,1770649833180,-812.82410099,0.00037804,15]
[404886063,1770649833190,-888.08559182,0.00037804,15]
[404886064,1770649833200,-888.08559182,0.00037804,15]
[404886065,1770649833210,-888.08559182,0.00037804,15]
[404886066,1770649833220,-888.08559182,0.00037804,15]
[404886067,1770649833230,-3639.66477047,0.00037804,2]
[404886068,1770649833240,-249564.35531772,0.00037805,2]
[404886072,1770649837817,-400.0,0.00037804,15]
[404886073,1770649837829,-111.92394536,0.00037804,15]
[404886074,1770649837839,-1322.0084139,0.00037805,2]
[404886075,1770649837851,-638.55537377,0.00037805,2]
[404886076,1770649837863,-1966.54436356,0.00037805,2]
[404886077,1770649837877,-18048.31740234,0.00037805,2]
[404886078,1770649837889,-356533.15287343,0.00037805,2]
[404886079,1770649837903,-34831.49999999,0.00037805,2]
[404886080,1770649837914,-868.05315215,0.00037805,2]
[404886081,1770649837926,-3572.87009396,0.00037805,2]
[404886082,1770649837938,-4000.0,0.00037805,2]
[404886083,1770649837949,-10082.27454813,0.00037805,2]
[404886084,1770649837961,-9476.39340091,0.00037805,2]
[404886085,1770649837973,-1396.78893979,0.00037805,2]
[404886086,1770649837984,-1855.47122126,0.00037805,2]
[404886087,1770649837995,-3207.033102,0.00037805,2]
[404886088,1770649838007,-1542.02172142,0.00037805,2]
[404886089,1770649838019,-618468.12874049,0.00037805,2]
[404886090,1770649838035,-2320.58896356,0.00037805,2]
[404886091,1770649838048,-617.1735505,0.00037805,2]
[404886092,1770649838060,-43814.0666411,0.00037805,2]
[404886093,1770649838073,-564.0886184,0.00037805,2]
[404886094,1770649838085,-11246.87476381,0.00037805,2]
[404886095,1770649838101,-14013.20835788,0.00037805,2]
[404886096,1770649838113,-23894.96710464,0.00037805,2]
[404886097,1770649838125,-511.70554514,0.00037805,2]
[404886101,1770649839726,-5351.15532504,0.00037721,2]
[404886102,1770649839736,-1415971.80252889,0.00037805,2]
[404886103,1770649839748,-76451.11758148,0.00037805,2]
[404886104,1770649839759,-327.45407989,0.00037805,2]
[404886105,1770649839986,-833.46451154,0.00037805,2]
[404886106,1770649839997,-534.0,0.00037805,2]
[404886131,1770649844744,-344.36864777,0.00037705,2]
[404886132,1770649844847,-3251.16142859,0.00037705,2]
[404886167,1770649845819,-1627.77555379,0.00037705,2]
[404887592,1770649987988,300.0,0.000297,30]
[404887593,1770649992720,600.0,0.000297,120]
[404887594,1770649992880,600.0,0.00029718,120]
[404887595,1770649992997,720.90700325,0.00032395,120]
[404887620,1770650231980,5000.0,0.000297,120]
[404887623,1770650269214,2860.046,0.000353,120]
[404887625,1770650270377,2860.046,0.000353,120]
[404887626,1770650271648,2860.04,0.000353,120]
[404887627,1770650272927,2745.643,0.000341,30]
[404887628,1770650274209,2745.643,0.000341,30]
[404887629,1770650275548,2745.64,0.000341,30]
[404887630,1770650276725,2516.84,0.000328,30]
[404887631,1770650277996,2516.84,0.000328,30]
[404887632,1770650279162,2516.84,0.000328,30]
[404887633,1770650280389,2402.44,0.000315,30]
[404887634,1770650281574,2402.44,0.000315,30]
[404887635,1770650282858,2402.43,0.000315,30]
[404887662,1770650599765,166.66,0.00033297,30]
[404887663,1770650600010,166.66,0.00033998,30]
[404887664,1770650600451,166.66,0.00034699,30]
[404887665,1770650600666,166.66,0.000354,30]
[404887677,1770650733350,5000.01,8.36e-06,2]
[404887678,1770650733377,5000.01,8.36e-06,2]
[404887679,1770650733403,5000.01,8.36e-06,2]
[404887680,1770650733426,5000.01,8.36e-06,2]
[404887681,1770650733449,5000.01,8.36e-06,2]
[404887682,1770650733473,5000.01,8.36e-06,2]
[404887683,1770650733496,5000.01,8.36e-06,2]
[404887684,1770650733518,12.83916464,8.36e-06,2]
[404887685,1770650761716,300.0,0.00017999,2]
[404887686,1770650770939,300.0,0.00017999,2]
[404887688,1770650785084,1251.3040891,0.00015,2]
[404887690,1770650813162,3448.7059109,0.000162,5]
[404887691,1770650813186,5000.01,0.000162,5]
[404887692,1770650813210,1535.8840891,0.000162,5]
[404887693,1770650814885,3464.1259109,0.000179,2]
[404887694,1770650814908,5000.01,0.000179,2]
[404887695,1770650814935,5000.01,0.000179,2]
[404887696,1770650814961,9700.01,0.000179,2]
[404887697,1770650814987,10000.01,0.000179,2]
[404887698,1770650815013,10000.01,0.000179,2]
[404887699,1770650815039,10000.01,0.000179,2]
[404887700,1770650815065,10000.01,0.000179,2]
[404887701,1770650815089,10000.01,0.000179,2]
[404887702,1770650815112,10000.01,0.000179,2]
[404887703,1770650815137,10000.01,0.000179,2]
[404887704,1770650815162,10000.01,0.000179,2]
[404887705,1770650815185,10000.01,0.000179,2]
[404887706,1770650822213,-300.0,0.00017899,2]
[404887707,1770650822242,-550.0,0.00017899,2]
[404887708,1770650822360,-3351.74563594,0.000179,2]
[404887709,1770650822390,-10000.01,0.000179,2]
[404887710,1770650822446,-10000.01,0.000179,2]
[404887711,1770650822590,-10000.01,0.000179,2]
[404887712,1770650822705,-10000.01,0.000179,2]
[404887713,1770650822823,-10000.01,0.000179,2]
[404887714,1770650822935,-10000.01,0.000179,2]
[404887715,1770650823047,-10000.01,0.000179,2]
[404887716,1770650823259,-10000.01,0.000179,2]
[404887717,1770650823290,-10000.01,0.000179,2]
[404887718,1770650826385,-1123.0,0.00017863,2]
[404887719,1770650829475,-2741.17083536,0.000179,2]
[404887720,1770650829584,-5000.01,0.000179,2]
[404887721,1770650829709,-5000.01,0.000179,2]
[404887722,1770650829839,-5000.01,0.000179,2]
[404887723,1770650829971,-5000.01,0.000179,2]
[404887724,1770650830269,-5000.01,0.000179,2]
[404887725,1770650830295,-5000.01,0.000179,2]
[404887726,1770650830322,-5000.01,0.000179,2]
[404887727,1770650832195,-10000.01,0.000179,2]
[404887728,1770650832304,-10000.01,0.000179,2]
[404887729,1770650832425,-10000.01,0.000179,2]
[404887730,1770650832446,-5000.01,0.000179,2]
[404887731,1770650832563,-300.0,0.00017899,2]
[404887732,1770650832600,-4400.01,0.000179,2]
[404887733,1770650833427,-10000.01,0.000179,2]
[404887734,1770650833535,-10000.01,0.000179,2]
[404887735,1770650833652,-10000.01,0.000179,2]
[404887736,1770650833790,-10000.01,0.000179,2]
[404887737,1770650833903,-10000.01,0.000179,2]
[404887738,1770650834007,-10000.01,0.000179,2]
[404887739,1770650834108,-10000.01,0.000179,2]
[404887740,1770650840138,151.0,0.00014634,2]
[404887741,1770650842357,-515.1032921,0.000179,2]
[404887742,1770650842382,-8969.8034158,0.000179,2]
[404887743,1770650842459,-799.2381371,0.000179,2]
[404887744,1770650842489,-1929.0612353,0.000179,2]
[404887745,1770650842519,-621.20778463,0.000179,2]
[404887746,1770650842547,-1272.50606405,0.000179,2]
[404887747,1770650842635,-1057.61169732,0.000179,2]
[404887748,1770650842683,-755.98355784,0.000179,2]
[404887749,1770650842700,-7884.78660536,0.000179,2]
[404887750,1770650842736,-10000.01,0.000179,2]
[404887751,1770650842851,-4161.97036114,0.000179,2]
[404887752,1770650842880,-612.52754714,0.00017999,5]
[404887753,1770650842921,-451.01418344,0.00017999,5]
[404887754,1770650845268,1050.0,0.00018,30]
[404887755,1770650851858,1479.37248581,0.000179,2]
[404887756,1770650860274,1588.68956412,0.000179,2]
[404887757,1770650864041,6931.94795007,0.000179,2]
[404887758,1770650864064,3761.12792342,0.000179,2]
[404887759,1770650881274,300.0,0.00017999,2]
[404887760,1770650881698,200.85,0.000179,2]
[404887761,1770650882564,167.35,0.00017,2]
[404887763,1770650889950,308.13707197,0.000125,2]
[404887764,1770650895868,500.0,0.00017973,2]
[404887765,1770650896591,150.0,0.00017973,2]
[404887766,1770650903769,803.08,0.000173,2]
[404887767,1770650908141,480.0,0.00017999,2]
[404887768,1770650915314,187.37750824,0.000179,2]
[404887769,1770650915639,150.50743336,0.00035,30]
[404887770,1770650923526,165.79318831,0.00017999,2]
[404887771,1770650923557,159.38731134,0.00017999,2]
[404887772,1770650923590,447.65684957,0.00017999,2]
[404887773,1770650923624,196.59481374,0.00017999,2]
[404887774,1770650923659,500.0,0.00017999,2]
[404887775,1770650923692,500.0,0.00017999,2]
[404887776,1770650923928,151.41355621,0.00017999,2]
[404887777,1770650924238,500.0,0.00017999,2]
[404887778,1770650924580,500.0,0.00017999,2]
[404887779,1770650924629,21.2417772,0.00017999,2]
[404887780,1770650924655,478.7582228,0.00017999,2]
[404887781,1770650924715,622.16501507,0.00017999,2]
[404887782,1770650932479,500.0,0.00017999,2]
[404887783,1770650932509,500.0,0.00017999,2]
[404887784,1770650932538,500.0,0.00017999,2]
[404887785,1770650932568,500.0,0.00017999,2]
[404887786,1770650932602,1702.4227327,0.00017999,2]
[404887787,1770650932632,500.0,0.00017999,2]
[404887788,1770650932665,500.0,0.00017999,2]
[404887789,1770650932693,500.0,0.00017999,2]
[404887790,1770650932723,500.0,0.00017999,2]
[404887791,1770650932752,500.0,0.00017999,2]
[404887792,1770650932786,1702.4227327,0.00017999,2]
[404887793,1770650932819,500.0,0.00017999,2]
[404887794,1770650932854,204.15306279,0.00017999,2]
[404887795,1770650932883,290.08823394,0.00017999,2]
[404887796,1770650932905,209.91176606,0.00017999,2]
[404887797,1770650932940,500.0,0.00017999,2]
[404887798,1770650932974,1702.4227327,0.00017999,2]
[404887799,1770650933003,500.0,0.00017999,2]
[404887800,1770650933032,500.0,0.00017999,2]
[404887801,1770650933066,1702.4227327,0.00017999,2]
[404887802,1770650933097,500.0,0.00017999,2]
[404887803,1770650933128,500.0,0.00017999,2]
[404887804,1770650933156,500.0,0.00017999,2]
[404887805,1770650933185,500.0,0.00017999,2]
[404887806,1770650933213,196.86908065,0.00017999,2]
[404887807,1770650933436,1702.4227327,0.00017999,2]
[404887808,1770650933466,500.0,0.00017999,2]
[404887809,1770650933497,485.96095519,0.00017999,2]